[Event "CHI-ch Women 2020"]
[Site "Las Condes"]
[Date "2020.02.13"]
[Round "3.8"]
[White "Reyes Jara, Paula"]
[Black "Zuniga Lara, Catalina Paz"]
[Result "1/2-1/2"]
[ECO "B08"]
[WhiteElo "1860"]
[BlackElo "1712"]
[Annotator "NA RC"]
[PlyCount "36"]
[EventDate "2020.02.11"]
[EventType "tourn"]
[EventCountry "CHI"]
[SourceTitle "playchess.com"]
[Source "ChessBase"]
[SourceQuality "1"]
[TimeControl "5400+30"]

{[%evp 8,36,50,47,43,43,53,27,37,0,62,48,73,67,77,56,54,43,73,-140,-152,-147,-36,-95,-105,-127,-30,-25,-26,-191,-181]} 1. e4 {[%emt 0:00:00]} g6 {[%emt 0:00:53]} 2. d4 {[%emt 0:00:46]} Bg7 {[%emt 0:00:48]} 3. Nf3 {[%emt 0:00:32]} d6 {[%emt 0:00:41]} 4. Be2 {[%emt 0:02:46]} Nd7 {[%emt 0:01:20]} 5. O-O {[%emt 0:11:02]} Ngf6 {[%emt 0:00:32]} 6. Nc3 {[%emt 0:02:50]} O-O {[%emt 0:01:56]} 7. Bg5 {[%emt 0:02:43]} h6 {[%emt 0:09:19]} 8. Bf4 {[%emt 0:03:21]} Nh5 {[%emt 0:01:45]} 9. Be3 {[%emt 0:00:30]} e5 {[%emt 0:00:53]} 10. Qd2 {[%emt 0:00:45]} Kh7 {[%emt 0:02:20]} 11. dxe5 {[%emt 0:02:59]} dxe5 {[%emt 0:04:22]} 12. Rad1 {[%emt 0:00:09]} c6 {[%emt 0:00:10]} 13. Nxe5 $2 {[%emt 0:12:58]} (13. Rfe1 $14 {stays ahead.}) 13... Bxe5 {[%emt 0:03:07]} 14. Bxh5 {[%emt 0:00:08]} Qh4 {[%emt 0:01:06]} ({Black should try} 14... gxh5 $19 15. f4 Bg7) 15. Bxg6+ {[%emt 0:01:54]} (15. f4 $15 Bxc3 16. Qxc3 Qxh5 17. f5) 15... fxg6 {[%emt 0:04:54]} 16. f4 {[%emt 0:01:05]} Bxc3 {[%emt 0:03:23]} (16... Bg7 $17 17. e5 Nb6) 17. Qxc3 {[%emt 0:01:08]} Nf6 {[%emt 0:00:56]} 18. g3 $2 {[%emt 0:08:15] [#]} (18. Bf2 $11 {and White stays safe.} Qg4 19. Qb4) 18... Qh5 $19 {[%emt 0:03:05]} ({Stronger than} 18... Nxe4 19. Qb4 $11 (19. gxh4 Nxc3 20. bxc3 b6 $11)) 1/2-1/2

[Event "CHI-ch Women 2020"]
[Site "Las Condes"]
[Date "2020.02.14"]
[Round "4.6"]
[White "Hormazabal Figueroa, Constanza Valentina"]
[Black "Luna Benalcazar, Gianella"]
[Result "0-1"]
[ECO "A50"]
[WhiteElo "1786"]
[BlackElo "1756"]
[Annotator "NA RC"]
[PlyCount "86"]
[EventDate "2020.02.11"]
[EventType "tourn"]
[EventCountry "CHI"]
[SourceTitle "playchess.com"]
[Source "ChessBase"]
[SourceQuality "1"]
[TimeControl "5400+30"]

1. d4 {[%emt 0:02:04]} Nf6 {[%emt 0:00:00]} 2. Nf3 {[%emt 0:00:29]} g6 {[%emt 0:00:32]} 3. c4 {[%emt 0:00:11]} Bg7 {[%emt 0:00:14]} 4. Nc3 {[%emt 0:00:13]} b6 {[%emt 0:00:38]} 5. g3 {[%emt 0:00:33]} Bb7 {[%emt 0:00:24]} 6. Bg2 {[%emt 0:00:19]} O-O {[%emt 0:02:10]} 7. O-O {[%emt 0:00:08]} d6 {[%emt 0:00:46]} 8. Qc2 {[%emt 0:00:40]} e6 {[%emt 0:05:11]} 9. Rd1 {[%emt 0:02:19]} Qe7 {[%emt 0:02:48]} 10. e4 {[%emt 0:06:43]} Ne8 {[%emt 0:06:52]} 11. Bg5 {[%emt 0:01:43]} f6 {[%emt 0:04:45]} 12. Be3 {[%emt 0:01:33]} Nd7 {[%emt 0:02:05]} 13. Qd2 {[%emt 0:04:40]} Rd8 {[%emt 0:03:37]} 14. Bh6 {[%emt 0:01:16]} Ba8 {[%emt 0:04:40]} 15. Rac1 {[%emt 0:03:21]} Kh8 {[%emt 0:11:03]} 16. Be3 {[%emt 0:04:24]} Rb8 {[%emt 0:02:57]} 17. Ne1 {[%emt 0:12:58]} f5 {[%emt 0:04:08]} 18. Bg5 {[%emt 0:01:40]} Qf7 {[%emt 0:02:18]} 19. exf5 {[%emt 0:02:38]} gxf5 {[%emt 0:02:27]} 20. Bxa8 {[%emt 0:10:02]} Rxa8 {[%emt 0:00:06]} 21. Ng2 {[%emt 0:00:09]} e5 {[%emt 0:06:31]} 22. dxe5 {[%emt 0:00:33]} Nxe5 {[%emt 0:00:53]} 23. Qe2 {[%emt 0:02:29]} Nxc4 {[%emt 0:05:22]} 24. Be7 {[%emt 0:04:36]} Rg8 {[%emt 0:01:28]} 25. Nd5 {[%emt 0:03:31]} Nxb2 {[%emt 0:06:11]} 26. Rd2 {[%emt 0:01:29]} c5 {[%emt 0:03:10]} 27. Ngf4 {[%emt 0:05:35]} Na4 {[%emt 0:05:15]} 28. Qc4 {[%emt 0:02:42]} b5 {[%emt 0:04:00]} 29. Qxb5 {[%emt 0:02:04]} Nc3 {[%emt 0:03:46]} 30. Qc6 {[%emt 0:07:41]} Nxd5 {[%emt 0:01:09]} 31. Nxd5 {[%emt 0:07:21]} Rb8 {[%emt 0:01:58]} 32. Bxd6 {[%emt 0:00:39]} Nxd6 {[%emt 0:01:13]} 33. Qxd6 {[%emt 0:00:16]} Bd4 {[%emt 0:00:39]} 34. Nf4 {[%emt 0:01:15]} Rb6 {[%emt 0:01:25]} 35. Qd5 {[%emt 0:01:02]} Qf6 {[%emt 0:02:22]} 36. Nh5 {[%emt 0:01:16]} Qh6 {[%emt 0:03:04]} 37. Rxd4 {[%emt 0:01:23]} Qxc1+ {[%emt 0:00:27]} 38. Rd1 {[%emt 0:01:01]} Qb2 {[%emt 0:00:43]} 39. Rd2 {[%emt 0:00:41]} Qc3 {[%emt 0:00:45]} 40. Rd3 {[%emt 0:01:22]} Rb1+ {[%emt 0:00:24]} 41. Kg2 {[%emt 0:00:45]} Qe1 {[%emt 0:00:26]} 42. Kh3 {[%emt 0:01:18]} Qf1+ {[%emt 0:00:18]} 43. Qg2 {[%emt 0:00:44]} Qxd3 {[%emt 0:00:09]} 0-1

[Event "CHI-ch Women 2020"]
[Site "Las Condes"]
[Date "2020.02.14"]
[Round "4.9"]
[White "Melin Contreras, Valeria"]
[Black "Reyes Jara, Paula"]
[Result "1-0"]
[ECO "C44"]
[WhiteElo "1685"]
[BlackElo "1860"]
[Annotator "NA RC"]
[PlyCount "65"]
[EventDate "2020.02.11"]
[EventType "tourn"]
[EventCountry "CHI"]
[SourceTitle "playchess.com"]
[Source "ChessBase"]
[SourceQuality "1"]
[TimeControl "5400+30"]

{[%evp 13,62,-14,3,-5,32767,32767,32767,32767,32767,32767,32767,32767,32767,32767,18,32767,32767,0,487,32767,32767,32767,32767,644,32767,862,32767,32767,1153,32767,32767,32767,32767,32767,1804,1530,1906,2077,1983,2188,1944,29980,6283,29990,29990,29991,29991,29992,29995,29992,29992]} 1. e4 {[%emt 0:00:30]} e5 {[%emt 0:00:00]} 2. Nf3 {[%emt 0:00:48]} Nc6 {[%emt 0:00:09]} 3. c3 {[%emt 0:00:15]} Nf6 {[%emt 0:00:52]} 4. d4 {[%emt 0:00:15]} exd4 {[%emt 0:02:53]} 5. e5 {[%emt 0:00:26]} Nd5 {[%emt 0:04:43]} 6. cxd4 {[%emt 0:00:43]} Bb4+ {[%emt 0:00:19]} 7. Bd2 {[%emt 0:01:19]} Bxd2+ {[%emt 0:00:33]} 8. Qxd2 {[%emt 0:05:49]} Qe7 {[%emt 0:00:51] C44: Ponziani Opening and Scotch Gambit.} 9. Bc4 {[%emt 0:05:01]} Nb6 {[%emt 0:01:51]} 10. Bb3 {[%emt 0:01:45]} O-O {[%emt 0:04:36]} 11. O-O {[%emt 0:00:28]} d6 {[%emt 0:00:35]} 12. Re1 {[%emt 0:01:49]} Bg4 {[%emt 0:02:25] [#]} 13. Ng5 $146 {[%emt 0:14:29]} ({Predecessor:} 13. exd6 Qxd6 14. Ne5 Nxe5 15. dxe5 Qg6 16. Bc2 f5 17. Kh1 Rad8 18. Qc3 c6 19. e6 {0-1 (67) Muhren,Y-Hommes,E Hengelo 2002}) 13... Nxd4 {[%emt 0:16:39]} ({Better is} 13... h6 $15 14. Ne4 dxe5 15. dxe5 Qxe5) 14. Bxf7+ {[%emt 0:25:23]} Kh8 {[%emt 0:00:52]} 15. Re4 {[%emt 0:08:24]} Ne6 $2 {[%emt 0:14:12]} (15... dxe5 $11 16. Rxg4 Rad8) 16. Bxe6 {[%emt 0:06:23]} Bxe6 {[%emt 0:00:19]} 17. exd6 {[%emt 0:00:38]} Qd7 {[%emt 0:11:49]} 18. Rxe6 {[%emt 0:00:54]} Rf5 {[%emt 0:00:20]} 19. Re7 {[%emt 0:01:43]} Qb5 {[%emt 0:00:43]} 20. Nf7+ {[%emt 0:02:40]} Kg8 {[%emt 0:00:59]} 21. Nc3 {[%emt 0:05:26]} Qc5 {[%emt 0:02:51]} 22. Ne4 {[%emt 0:01:30]} Qb5 {[%emt 0:05:09]} 23. a4 {[%emt 0:06:14]} Qd5 {[%emt 0:07:08] [#]} 24. Nh6+ $1 {[%emt 0:03:54]} gxh6 {[%emt 0:09:04]} 25. Qxh6 {[%emt 0:00:08]} Qf7 {[%emt 0:01:21]} 26. Rxf7 {[%emt 0:00:33]} (26. Ra3 $142 Kh8 {[#]} 27. Ng5 $1 {[%mdl 512]} Rxg5 28. Rxf7 Rxg2+ 29. Kxg2 Rg8+ 30. Kf1 $1 {[%mdl 512]} Rg1+ 31. Kxg1 cxd6 32. Qxh7#) 26... Rxf7 {[%emt 0:00:05]} 27. Ng5 {[%emt 0:00:46]} Rg7 {[%emt 0:00:54]} 28. Re1 {[%emt 0:00:45]} cxd6 {[%emt 0:00:50]} 29. Qe6+ {[%emt 0:00:14]} Kh8 {[%emt 0:00:38]} 30. Nf7+ {[%emt 0:00:14]} Kg8 {[%emt 0:00:07]} 31. Nxd6+ {[%emt 0:00:28]} Kh8 {[%emt 0:00:14]} 32. Nf5 {[%emt 0:00:43]} Rd7 {[%emt 0:01:05]} 33. Qe8+ {[%emt 0:00:29]} 1-0

[Event "CHI-ch Women 2020"]
[Site "Las Condes"]
[Date "2020.02.15"]
[Round "5.7"]
[White "Reyes Jara, Paula"]
[Black "Sanchez Tobar, Francisca Valentina"]
[Result "1/2-1/2"]
[ECO "C60"]
[WhiteElo "1860"]
[BlackElo "1757"]
[Annotator "NA RC"]
[PlyCount "48"]
[EventDate "2020.02.11"]
[EventType "tourn"]
[EventCountry "CHI"]
[SourceTitle "playchess.com"]
[Source "ChessBase"]
[SourceQuality "1"]
[TimeControl "5400+30"]

1. e4 {[%emt 0:00:00]} e5 {[%emt 0:02:46]} 2. Nf3 {[%emt 0:00:01]} Nc6 {[%emt 0:00:10]} 3. Bb5 {[%emt 0:00:32]} g6 {[%emt 0:01:02]} 4. Nc3 {[%emt 0:01:03]} Bg7 {[%emt 0:00:18]} 5. d3 {[%emt 0:01:38]} Nge7 {[%emt 0:01:15]} 6. Bg5 {[%emt 0:03:17]} h6 {[%emt 0:02:05]} 7. Be3 {[%emt 0:00:12]} a6 {[%emt 0:00:22]} 8. Bxc6 {[%emt 0:01:34]} Nxc6 {[%emt 0:00:43]} 9. Qd2 $15 {[%emt 0:03:31]} d6 {[%emt 0:07:00]} 10. O-O-O {[%emt 0:07:48]} Bg4 {[%emt 0:03:35]} 11. h3 {[%emt 0:05:42]} Bxf3 {[%emt 0:02:07]} 12. gxf3 {[%emt 0:03:19]} Qd7 {[%emt 0:00:11]} 13. f4 {[%emt 0:00:40]} O-O-O {[%emt 0:02:01]} 14. Nd5 {[%emt 0:03:37]} Ne7 {[%emt 0:09:56]} 15. c4 {[%emt 0:06:18]} Kb8 {[%emt 0:11:26]} 16. fxe5 {[%emt 0:19:12]} dxe5 {[%emt 0:00:23]} 17. Bc5 {[%emt 0:04:36]} Nxd5 {[%emt 0:10:49]} 18. exd5 {[%emt 0:00:26]} c6 {[%emt 0:00:36]} 19. d6 {[%emt 0:04:30]} Qe6 {[%emt 0:08:04]} 20. Qa5 {[%emt 0:04:53]} Rxd6 {[%emt 0:12:08]} 21. Bxd6+ {[%emt 0:00:16]} Qxd6 {[%emt 0:00:02]} 22. Qb6 {[%emt 0:01:51]} h5 {[%emt 0:01:46]} 23. Kc2 {[%emt 0:04:19]} Qe6 {[%emt 0:02:46]} 24. Rde1 {[%emt 0:07:43]} Qf5 {[%emt 0:01:59]} 1/2-1/2

[Event "CHI-ch Women 2020"]
[Site "Las Condes"]
[Date "2020.02.15"]
[Round "5.10"]
[White "Luna Benalcazar, Gianella"]
[Black "Fuentes Inzunza, Lesly"]
[Result "0-1"]
[ECO "D55"]
[WhiteElo "1756"]
[BlackElo "1851"]
[Annotator "NA RC"]
[PlyCount "76"]
[EventDate "2020.02.11"]
[EventType "tourn"]
[EventCountry "CHI"]
[SourceTitle "playchess.com"]
[Source "ChessBase"]
[SourceQuality "1"]
[TimeControl "5400+30"]

1. d4 {[%emt 0:00:00]} d5 {[%emt 0:04:31]} 2. c4 {[%emt 0:00:35]} e6 {[%emt 0:00:15]} 3. Nc3 {[%emt 0:00:05]} Be7 {[%emt 0:00:28]} 4. Nf3 {[%emt 0:00:27]} Nf6 {[%emt 0:00:20]} 5. Bg5 {[%emt 0:00:28]} O-O {[%emt 0:01:03]} 6. Qc2 {[%emt 0:01:19]} h6 $11 {[%emt 0:03:01]} 7. Bxf6 {[%emt 0:00:23]} Bxf6 {[%emt 0:00:18]} 8. e3 {[%emt 0:00:40]} b6 {[%emt 0:18:08]} 9. cxd5 {[%emt 0:02:05]} exd5 {[%emt 0:00:24]} 10. Bd3 {[%emt 0:05:43]} Bb7 {[%emt 0:01:39]} 11. g4 {[%emt 0:05:19]} c5 {[%emt 0:04:06]} 12. O-O-O {[%emt 0:05:42]} cxd4 {[%emt 0:06:15]} 13. exd4 {[%emt 0:00:24]} Qd6 {[%emt 0:18:20]} 14. Qd2 {[%emt 0:06:55]} Nc6 {[%emt 0:09:14]} 15. Bb5 {[%emt 0:06:48]} Bc8 {[%emt 0:07:29]} 16. Rdg1 {[%emt 0:07:54]} Nxd4 {[%emt 0:02:56]} 17. Qe3 {[%emt 0:20:30]} Nxb5 {[%emt 0:03:24]} 18. Nxb5 {[%emt 0:01:42]} Qb4 {[%emt 0:00:42]} 19. Nbd4 {[%emt 0:02:42]} Ba6 {[%emt 0:02:24]} 20. Kb1 {[%emt 0:04:33]} Rfe8 {[%emt 0:00:33]} 21. Qb3 {[%emt 0:04:23]} Qxb3 {[%emt 0:00:20]} 22. axb3 {[%emt 0:01:15]} Bd3+ {[%emt 0:00:10]} 23. Kc1 {[%emt 0:03:18]} Be4 {[%emt 0:00:12]} 24. Kd2 {[%emt 0:03:04]} Bxd4 {[%emt 0:00:46]} 25. Nxd4 {[%emt 0:00:06]} Bxh1 {[%emt 0:00:16]} 26. Rxh1 {[%emt 0:00:05]} Re4 {[%emt 0:00:29]} 27. Nf5 {[%emt 0:01:42]} Rxg4 {[%emt 0:02:37]} 28. Ne3 {[%emt 0:02:32]} Rf4 {[%emt 0:01:09]} 29. Rf1 {[%emt 0:00:53]} Rd8 {[%emt 0:00:49]} 30. f3 {[%emt 0:01:01]} h5 {[%emt 0:00:57]} 31. Ng2 {[%emt 0:01:14]} Rb4 {[%emt 0:01:48]} 32. Rf2 {[%emt 0:05:46]} Rxb3 {[%emt 0:01:56]} 33. Kc2 {[%emt 0:00:13]} Rb4 {[%emt 0:00:41]} 34. Kc3 {[%emt 0:00:52]} a5 {[%emt 0:00:07]} 35. Rd2 {[%emt 0:00:22]} d4+ {[%emt 0:00:33]} 36. Kd3 {[%emt 0:00:32]} Rb3+ {[%emt 0:00:34]} 37. Ke4 {[%emt 0:00:17]} Re8+ {[%emt 0:00:35]} 38. Kf4 {[%emt 0:01:43]} d3 {[%emt 0:00:27]} 0-1

[Event "CHI-ch Women 2020"]
[Site "Las Condes"]
[Date "2020.02.15"]
[Round "6.6"]
[White "Hormazabal Figueroa, Constanza Valentina"]
[Black "Fuentes Inzunza, Lesly"]
[Result "1/2-1/2"]
[ECO "B15"]
[WhiteElo "1786"]
[BlackElo "1851"]
[Annotator "NA RC"]
[PlyCount "136"]
[EventDate "2020.02.11"]
[EventType "tourn"]
[EventCountry "CHI"]
[SourceTitle "playchess.com"]
[Source "ChessBase"]
[SourceQuality "1"]
[TimeControl "5400+30"]

{[%evp 21,134,-18,32767,0,0,-22,-44,-57,-44,-54,-50,-53,133,116,204,229,268,320,190,310,206,-123,-131,-215,-192,-170,-229,-189,-244,-888,-805,-1535,-571,-1584,-407,-5377,-1213,-1299,-151,-222,0,-125,8,4,10,8,24,0,18,15,26,15,15,0,34,18,41,29,28,0,45,28,20,14,14,14,60,72,63,0,47,0,8,0,40,41,287,32767,32767,32767,4134,4627,4622,29953,29972,177,134,173,152,60,78,21,108,122,14,0,4618,4782,29963,12822,29964,5072,29959,685,29980,5058,29980,0,0,0,0,0,0,0,0]} 1. e4 {[%emt 0:04:08]} c6 {[%emt 0:04:49]} 2. d4 {[%emt 0:00:31]} d5 {[%emt 0:00:09]} 3. Nc3 {[%emt 0:00:09]} dxe4 {[%emt 0:00:06]} 4. Nxe4 {[%emt 0:00:10]} Nf6 {[%emt 0:00:05]} 5. Nxf6+ {[%emt 0:00:39]} exf6 {[%emt 0:00:08]} 6. c3 {[%emt 0:00:49]} Bf5 {[%emt 0:01:49]} 7. Be3 {[%emt 0:03:23] B15: Caro-Kann: 3 Nc3: 3...g6 and 3...dxe4 4 Nxe4 Nf6 5 Nxf6+ exf6.} Bd6 {[%emt 0:00:38]} 8. Bc4 {[%emt 0:00:50]} O-O {[%emt 0:00:48] [#]} 9. Ne2 $146 {[%emt 0:04:03]} ({Predecessor:} 9. Nf3 Nd7 10. Nh4 Be4 11. Qg4 Re8 12. Nf5 Bxf5 13. Qxf5 Nb6 14. Bd3 g6 15. Qf3 {0-1 (60) Shailesh,D (2171)-Kunal,M (2354) Mumbai 2016}) 9... Qc7 {[%emt 0:01:42]} 10. Ng3 {[%emt 0:02:44]} Bg6 {[%emt 0:05:33]} 11. Qf3 {[%emt 0:02:04]} Nd7 {[%emt 0:01:32]} 12. O-O-O {[%emt 0:02:43]} b5 {[%emt 0:02:03]} 13. Bb3 {[%emt 0:00:52]} a5 {[%emt 0:17:38]} 14. Bc2 {[%emt 0:04:41]} Nb6 {[%emt 0:19:59]} 15. Nf5 {[%emt 0:12:56]} b4 {[%emt 0:06:07]} 16. h4 {[%emt 0:00:22]} bxc3 $2 {[%emt 0:02:51] [#]} (16... Bxf5 $1 $15 {stays ahead.} 17. Qxf5 g6 18. Qxf6 Nd5 {[%mdl 64] Double Attack}) 17. h5 $1 {[%emt 0:00:38]} cxb2+ {[%emt 0:00:43]} 18. Kb1 {[%emt 0:00:16]} Bxf5 {[%emt 0:19:26]} 19. Qxf5 {[%emt 0:00:09]} g6 {[%emt 0:00:18]} 20. hxg6 {[%emt 0:03:42]} fxg6 {[%emt 0:00:12] [#]} 21. Bb3+ $2 {[%emt 0:00:12]} (21. Qe6+ $1 $18 Rf7 22. Rxh7 Kxh7 23. Rh1+ Kg8 24. Bxg6 {[%mdl 64] Pin}) 21... Nd5 {[%emt 0:01:30]} 22. Bxd5+ {[%emt 0:11:14]} (22. Qc2 $17) 22... cxd5 {[%emt 0:00:02]} 23. Qxd5+ {[%emt 0:00:18]} Kh8 {[%emt 0:00:04]} 24. g3 {[%emt 0:02:38] [#]} g5 $1 {[%emt 0:05:19]} 25. Rh6 $2 {[%emt 0:09:56]} (25. Qe4 Rae8 26. Qc2) 25... Rac8 {[%emt 0:01:41]} 26. Qf5 {[%emt 0:00:32]} Kg8 {[%emt 0:02:51]} (26... Ba3 $142 27. Rhh1 Qb7 28. Qc2 Rxc2 29. Kxc2 Rc8+ 30. Kd3 Qb5+ 31. Ke4 f5+ 32. Kf3 Qd5+ {[%mdl 64] Double Attack} 33. Ke2 Rc2+ 34. Rd2 Rxd2+ 35. Kxd2 Qxh1 36. Bxg5 b1=Q 37. Bf6+ Kg8 38. Ke3 Qhe4+ 39. Kd2 Qee1#) 27. f4 {[%emt 0:07:19]} Rf7 {[%emt 0:02:42]} (27... Ba3 $142 28. Rhh1 Qb7 29. Qxh7+ Qxh7+ 30. Rxh7 Kxh7 31. Rh1+ Kg6 32. Bd2 Rc4 33. fxg5 fxg5 34. Re1 {[#]} Re8 $1 {[%mdl 512]} 35. Rf1 Rb8 36. Rf6+ Kxf6 37. g4 Rc1+ {[%mdl 64] Back Rank} 38. Bxc1 bxc1=Q#) 28. fxg5 $2 {[%emt 0:01:45]} (28. Rh2 Ba3 29. Rc2 Qxc2+ 30. Qxc2 Rxc2 31. Kxc2) 28... fxg5 {[%emt 0:00:02]} (28... Ba3 $142 29. Qc5 Bxc5 30. a4 {[#]} Bxd4 $1 {[%mdl 512]} 31. Rh2 Bxe3 32. Rxb2 fxg5 33. Re1 Qc4 34. Rd1 Bd4 35. Re1 Rf2 36. Re8+ Rxe8 37. Re2 Rfxe2 38. g4 Re1#) 29. Qxg5+ {[%emt 0:03:23]} Kh8 $2 {[%emt 0:00:01]} (29... Rg7 $19 {[%csl Gc8][%cal Rc7c2]} 30. Qf5 Ba3 31. Qe6+ Kh8 32. Rxh7+ Rxh7 33. Qf6+ Qg7) 30. Rh2 {[%emt 0:01:30] [#]} Rg8 $2 {[%emt 0:02:55]} ({Weaker is} 30... Bxg3 31. Rxb2 Qc3 32. Qg4 $11 (32. Qxg3 Qd3+ {[%mdl 64] Double Attack} 33. Ka1 Qxd1+ 34. Rb1 Qf3 $17)) (30... Ba3 $1 $19 31. Qe5+ Kg8 32. Qxc7 Rfxc7 33. Rxb2 Bxb2 34. Kxb2 Rc2+ 35. Ka1 R8c3) 31. Qh6 {[%emt 0:06:31] [#]} (31. Qd5 $11) 31... Bxg3 {[%emt 0:00:35]} (31... Qe7 $1 $17 {[%cal Re7e4]} 32. d5 Qe4+ 33. Rc2 Be5) 32. Rxb2 {[%emt 0:01:16]} Bf4 {[%emt 0:00:51]} 33. Bxf4 {[%emt 0:02:59]} Qxf4 {[%emt 0:00:19]} 34. Qe6 {[%emt 0:03:08]} Qf5+ {[%emt 0:00:49]} 35. Qxf5 {[%emt 0:00:06]} Rxf5 {[%emt 0:00:06]} 36. d5 {[%emt 0:00:30]} Rd8 {[%emt 0:00:19]} 37. Rb5 {[%emt 0:00:38]} a4 {[%emt 0:00:24]} 38. Kb2 {[%emt 0:00:59]} Rf2+ {[%emt 0:00:53]} 39. Ka3 {[%emt 0:00:14]} Kg7 {[%emt 0:00:52]} 40. Rb7+ {[%emt 0:00:13]} (40. d6 $14) 40... Kg6 {[%emt 0:00:28]} 41. d6 {[%emt 0:00:33]} h5 {[%emt 0:00:28]} 42. d7 {[%emt 0:01:38]} h4 {[%emt 0:00:35]} 43. Rc7 {[%emt 0:00:47]} h3 {[%emt 0:00:26]} 44. Rc8 {[%emt 0:00:22]} Rff8 {[%emt 0:00:06]} 45. Rxd8 {[%emt 0:00:15]} (45. Rg1+ $1 $14 Kh5 46. Rc5+ Kh4 47. Rc4+ {[%mdl 64] Double Attack} Kh5 48. Rc5+ Kh4 49. Rc6) 45... Rxd8 {[%emt 0:00:06]} 46. Kxa4 {[%emt 0:00:19]} h2 {[%emt 0:00:39]} 47. Rh1 {[%emt 0:01:35]} Rxd7 {[%emt 0:00:44]} 48. Rxh2 {[%emt 0:00:05]} Ra7+ $2 {[%emt 0:00:32]} ({Black should play} 48... Rd8 $14) 49. Kb5 {[%emt 0:00:06]} Ra3 {[%emt 0:00:23]} 50. Kb4 {[%emt 0:00:11]} Rg3 $2 {[%emt 0:00:30]} (50... Rf3 51. Rd2 Rf4+ 52. Ka5 Rf5+ 53. Kb6 Rf4) 51. a4 {[%emt 0:00:11]} Kf6 {[%emt 0:00:37]} 52. a5 {[%emt 0:01:00]} Ke6 {[%emt 0:00:16]} 53. Rd2 $2 {[%emt 0:00:35]} (53. a6 {mates} Rg8 54. a7 Ra8 55. Rh6+ Ke5 56. Ra6 Kd5 57. Kb5 Kd4 58. Ra4+ Kc3 59. Kb6) 53... Rg1 {[%emt 0:00:36]} 54. a6 {[%emt 0:00:54]} Ra1 {[%emt 0:01:02]} 55. Kb5 {[%emt 0:00:13]} Rb1+ {[%emt 0:00:30]} 56. Kc6 {[%emt 0:00:22]} Rc1+ {[%emt 0:00:30]} 57. Kb7 {[%emt 0:00:14]} Rb1+ {[%emt 0:00:15]} 58. Ka7 {[%emt 0:00:12]} Rb3 $2 {[%emt 0:00:47] [#]} (58... Ke7 59. Ka8 Ke8) 59. Rd8 $1 {[%emt 0:00:19]} Ke7 {[%emt 0:00:15] [#]} 60. Rb8 $1 {[%emt 0:00:16]} Ra3 {[%emt 0:00:32]} 61. Kb7 {[%emt 0:00:59]} (61. Rb5 $142 Rd3 62. Kb7 Rd7+ 63. Kb6 Kd6 64. a7 Rd8 65. Kb7 Ke7 66. a8=Q) 61... Rb3+ {[%emt 0:00:45]} 62. Ka8 {[%emt 0:00:07]} Ra3 {[%emt 0:00:09]} 63. a7 {[%emt 0:00:11]} (63. Rb6 $142 Kd7 64. Kb7 Rc3 65. a7 Rc7+ 66. Ka6 Rc8 67. Rb8 Rc6+ 68. Kb5) 63... Kd7 {[%emt 0:00:21]} 64. Rb4 $2 {[%emt 0:00:41]} (64. Kb7 {mates} Ke6 65. a8=Q Rxa8 66. Rxa8 Kd5 67. Ra5+ Ke4 68. Kc6 Kd4 69. Ra4+ Kd3 70. Kd5) 64... Kc7 {[%emt 0:00:56]} 65. Rg4 {[%emt 0:02:13]} Rh3 {[%emt 0:00:28]} 66. Rg7+ {[%emt 0:00:59]} Kc8 {[%emt 0:00:18]} 67. Rg2 {[%emt 0:01:43]} Rc3 $11 {[%emt 0:00:15]} 68. Rg7 {[%emt 0:02:36]} Rc2 {[%emt 0:00:18]} 1/2-1/2

[Event "CHI-ch Women 2020"]
[Site "Las Condes"]
[Date "2020.02.15"]
[Round "6.7"]
[White "Zuniga Lara, Catalina Paz"]
[Black "Luna Benalcazar, Gianella"]
[Result "1/2-1/2"]
[ECO "D37"]
[WhiteElo "1712"]
[BlackElo "1756"]
[Annotator "NA RC"]
[PlyCount "59"]
[EventDate "2020.02.11"]
[EventType "tourn"]
[EventCountry "CHI"]
[SourceTitle "playchess.com"]
[Source "ChessBase"]
[SourceQuality "1"]
[TimeControl "5400+30"]

1. d4 {[%emt 0:00:44]} d5 {[%emt 0:00:00]} 2. Nf3 {[%emt 0:00:10]} Nf6 {[%emt 0:00:00]} 3. c4 {[%emt 0:00:04]} e6 {[%emt 0:00:00]} 4. Nc3 {[%emt 0:00:13]} Be7 {[%emt 0:00:00]} 5. Bf4 {[%emt 0:00:14]} O-O {[%emt 0:00:16]} 6. h3 {[%emt 0:00:21]} b6 {[%emt 0:01:36]} 7. cxd5 {[%emt 0:02:02]} Nxd5 {[%emt 0:00:33]} 8. Bh2 {[%emt 0:03:58]} Bb7 {[%emt 0:08:28]} 9. e3 {[%emt 0:01:11]} c5 {[%emt 0:06:45]} 10. Bd3 {[%emt 0:07:20]} cxd4 {[%emt 0:02:00]} 11. exd4 {[%emt 0:01:58]} Nd7 {[%emt 0:06:55]} 12. O-O {[%emt 0:00:54]} N7f6 {[%emt 0:01:15]} 13. Rc1 {[%emt 0:01:07]} Rc8 {[%emt 0:02:26]} 14. Nxd5 {[%emt 0:01:47]} Bxd5 {[%emt 0:00:40]} 15. Qa4 {[%emt 0:00:54]} Rxc1 {[%emt 0:01:46]} 16. Rxc1 {[%emt 0:00:39]} Bxf3 {[%emt 0:00:32]} 17. gxf3 {[%emt 0:00:26]} Qd5 {[%emt 0:02:09]} 18. Rc3 {[%emt 0:00:07]} Qg5+ {[%emt 0:01:13]} 19. Kf1 {[%emt 0:00:56]} Nd5 {[%emt 0:01:45]} 20. Rc6 {[%emt 0:09:23]} Nb4 {[%emt 0:05:15]} 21. Rc3 {[%emt 0:00:14]} Nxd3 {[%emt 0:20:30]} 22. Rxd3 {[%emt 0:00:07]} Qc1+ {[%emt 0:04:49]} 23. Kg2 {[%emt 0:01:35]} Qxb2 {[%emt 0:03:20]} 24. Qxa7 {[%emt 0:00:22]} Qc2 {[%emt 0:03:45]} 25. Re3 {[%emt 0:01:44]} Bh4 {[%emt 0:06:43]} 26. Bg3 {[%emt 0:00:44]} Bxg3 {[%emt 0:00:37]} 27. Kxg3 {[%emt 0:00:05]} h5 {[%emt 0:02:57]} 28. Qxb6 {[%emt 0:01:16]} h4+ {[%emt 0:04:26]} 29. Kg2 {[%emt 0:00:04]} Qxa2 {[%emt 0:00:15]} 30. Re4 {[%emt 0:00:05]} 1/2-1/2